fUSD/lending_fUSD_20250905
["ID","MTS","AMOUNT","RATE_DAILY","PERIOD"]
[383686183,1757087439107,-250.0,0.00028481,2]
[383686185,1757087439116,-151.0,0.00028481,2]
[383686187,1757087439126,-250.0,0.00028481,2]
[383686189,1757087439135,-250.0,0.00028481,2]
[383686191,1757087439144,-250.0,0.00028481,2]
[383686193,1757087439154,-151.0,0.00028481,2]
[383686195,1757087439163,-250.0,0.00028481,2]
[383686197,1757087439177,-250.0,0.00028481,2]
[383686199,1757087439187,-250.0,0.00028481,2]
[383686201,1757087439197,-151.0,0.00028481,2]
[383686203,1757087439207,-250.0,0.00028481,2]
[383686205,1757087439216,-250.0,0.00028481,2]
[383686207,1757087439225,-151.0,0.00028481,2]
[383686209,1757087439235,-250.0,0.00028481,2]
[383686211,1757087439245,-250.0,0.00028481,2]
[383686212,1757087439255,-151.0,0.00028481,2]
[383686214,1757087439264,-250.0,0.00028481,2]
[383686216,1757087439274,-151.0,0.00028481,2]
[383686219,1757087439284,-250.0,0.00028481,2]
[383686221,1757087439294,-250.0,0.00028481,2]
[383686223,1757087439303,-151.0,0.00028481,2]
[383686225,1757087439312,-250.0,0.00028481,2]
[383686227,1757087439321,-250.0,0.00028481,2]
[383686229,1757087439331,-250.0,0.00028481,2]
[383686230,1757087439340,-151.0,0.00028481,2]
[383686232,1757087439351,-187.9126971,0.00028481,2]
[383686234,1757087439360,-249.56199263,0.00028481,2]
[383686236,1757087439370,-250.0,0.00028481,2]
[383686239,1757087439379,-151.0,0.00028481,2]
[383686241,1757087439389,-250.0,0.00028481,2]
[383686243,1757087439398,-151.0,0.00028481,2]
[383686244,1757087439407,-250.0,0.00028481,2]
[383686246,1757087439417,-1000.0,0.00028481,2]
[383686249,1757087439428,-151.0,0.00028481,2]
[383686251,1757087439437,-250.0,0.00028481,2]
[383686253,1757087439447,-151.0,0.00028481,2]
[383686255,1757087439460,-250.0,0.00028481,2]
[383686257,1757087439474,-250.0,0.00028481,2]
[383686259,1757087439484,-250.0,0.00028481,2]
[383686261,1757087439493,-250.0,0.00028481,2]
[383686263,1757087439503,-250.0,0.00028481,2]
[383686265,1757087439512,-257.91778498,0.00028481,2]
[383686267,1757087439522,-250.0,0.00028481,2]
[383686269,1757087439531,-250.0,0.00028481,2]
[383686271,1757087439540,-250.0,0.00028481,2]
[383686273,1757087439549,-151.0,0.00028481,2]
[383686275,1757087439558,-250.0,0.00028481,2]
[383686277,1757087439567,-250.0,0.00028481,2]
[383686279,1757087439576,-250.0,0.00028481,2]
[383686281,1757087439587,-250.0,0.00028481,2]
[383686283,1757087439598,-250.0,0.00028481,2]
[383686284,1757087439607,-250.0,0.00028481,2]
[383686305,1757087439616,-250.0,0.00028481,2]
[383686309,1757087439821,-250.0,0.00028481,2]
[383686311,1757087439831,-320.020532,0.00028481,2]
[383686313,1757087439841,-500.0,0.00028481,5]
[383686315,1757087439855,-150.0,0.00028526,7]
[383686317,1757087439864,-150.0,0.00028526,7]
[383686319,1757087439874,-179.2,0.00028608,2]
[383686321,1757087439883,-1129.89420683,0.00028808,2]
[383686323,1757087439893,-600.0,0.0002887,2]
[383686325,1757087439902,-2117.9622,0.00028963,2]
[383686327,1757087439912,-479.71518799,0.00029017,11]
[383686335,1757087439981,-2536.88668972,0.00029017,11]
[383686337,1757087439991,-2000.0,0.00029029,7]
[383686339,1757087440000,-151.0,0.00029029,2]
[383686341,1757087440010,-151.0,0.00029029,2]
[383686343,1757087440019,-1821.114,0.00029063,21]
[383686345,1757087440028,-170.641,0.00029063,21]
[383686347,1757087440038,-197.57,0.00029155,2]
[383686349,1757087440048,-225.08682,0.000294,2]
[383686351,1757087440057,-6964.0899,0.00029402,2]
[383686353,1757087440066,-231.6946,0.00029402,2]
[383686355,1757087440076,-186.32981035,0.00029402,2]
[383686357,1757087440086,-1159.2617,0.00029502,2]
[383686359,1757087440096,-6082.39561151,0.00029502,2]
[383686416,1757087440648,-723.8584369,0.00029502,2]
[383686418,1757087440660,-5544.0,0.00029502,2]
[383686467,1757087441800,-22317.85325159,0.00029502,2]
[383686468,1757087441809,-1000.0,0.00029502,2]
[383686469,1757087441818,-1000.0,0.00029502,2]
[383686470,1757087441827,-2500.0,0.00029502,2]
[383686471,1757087441835,-10370.30041305,0.00029502,2]
[383686472,1757087441844,-9180.89018069,0.00029502,2]
[383686473,1757087441854,-221.8459282,0.00029502,2]
[383686474,1757087441862,-188.12399729,0.00029522,15]
[383686475,1757087441871,-200.0,0.00029541,2]
[383686476,1757087441880,-841.61885968,0.00029545,2]
[383686478,1757087441890,-151.0,0.00029577,2]
[383686480,1757087441899,-4533.0,0.00029586,2]
[383686482,1757087441908,-4533.0,0.00029588,2]
[383686484,1757087441918,-30551.933736,0.00029592,3]
[383686486,1757087441927,-160.0,0.00029592,3]
[383686488,1757087441936,-151.0,0.00029599,7]
[383686490,1757087441947,-1115.82316995,0.00029601,15]
[383686492,1757087441956,-165083.5421585,0.00029602,2]
[383686494,1757087441965,-888.0525217,0.00029602,2]
[383686496,1757087441974,-1263.2399425,0.00029602,2]
[383686498,1757087441984,-159.2082359,0.00029602,2]
[383686500,1757087441993,-1604.2859672,0.00029602,2]
[383686502,1757087442002,-6509.8620606,0.00029602,2]
[383686504,1757087442011,-3435.0782263,0.00029602,2]
[383686506,1757087442022,-179.2,0.00029606,2]
[383686508,1757087442031,-158.77799939,0.0002961,2]
[383686510,1757087442040,-500.0,0.00029622,5]
[383686512,1757087442049,-150.0,0.00029622,5]
[383686514,1757087442058,-150.0,0.00029622,5]
[383686516,1757087442067,-150.0,0.00029622,5]
[383686518,1757087442076,-150.0,0.00029622,5]
[383686520,1757087442086,-150.0,0.00029622,5]
[383686522,1757087442097,-150.0,0.00029622,2]
[383686524,1757087442106,-150.0,0.00029622,5]
[383686526,1757087442115,-500.0,0.00029622,5]
[383686528,1757087442124,-500.0,0.00029622,5]
[383686530,1757087442133,-150.0,0.00029622,5]
[383686532,1757087442143,-150.0,0.00029622,5]
[383686534,1757087442152,-150.0,0.00029622,2]
[383686536,1757087442161,-150.0,0.00029622,2]
[383686538,1757087442175,-500.0,0.00029622,5]
[383686540,1757087442184,-500.0,0.00029622,2]
[383686542,1757087442193,-150.0,0.00029622,2]
[383686544,1757087442203,-150.0,0.00029622,5]
[383686546,1757087442210,-150.0,0.00029622,5]
[383686548,1757087442220,-150.0,0.00029622,5]
[383686550,1757087442229,-150.0,0.00029622,5]
[383686552,1757087442238,-150.0,0.00029622,5]
[383686554,1757087442248,-150.0,0.00029622,5]
[383686556,1757087442258,-150.0,0.00029622,5]
[383686558,1757087442267,-150.0,0.00029622,5]
[383686560,1757087442276,-150.0,0.00029622,5]
[383686562,1757087442286,-150.0,0.00029622,5]
[383686564,1757087442295,-150.0,0.00029622,5]
[383686566,1757087442305,-150.0,0.00029622,5]
[383686568,1757087442315,-150.0,0.00029622,5]
[383686570,1757087442326,-150.0,0.00029622,5]
[383686572,1757087442335,-150.0,0.00029622,5]
[383686574,1757087442345,-150.0,0.00029622,5]
[383686576,1757087442356,-150.0,0.00029622,5]
[383686578,1757087442365,-150.0,0.00029622,5]
[383686580,1757087442375,-150.0,0.00029622,2]
[383686582,1757087442384,-150.0,0.00029622,2]
[383686584,1757087442393,-150.0,0.00029622,5]
[383686607,1757087442601,-150.0,0.00029622,5]
[383686609,1757087442611,-150.0,0.00029622,5]
[383686611,1757087442620,-150.0,0.00029622,5]
[383686613,1757087442630,-150.0,0.00029622,5]
[383686615,1757087442639,-150.0,0.00029622,5]
[383686617,1757087442651,-150.0,0.00029622,5]
[383686619,1757087442660,-150.0,0.00029622,5]
[383686621,1757087442669,-150.0,0.00029622,5]
[383686623,1757087442679,-400.0,0.0002967,2]
[383686625,1757087442689,-583.29769716,0.00029673,5]
[383686627,1757087442698,-227.5365638,0.00029673,5]
[383686629,1757087442707,-500.0,0.00029673,5]
[383686632,1757087442717,-212.63008182,0.0002969,3]
[383686634,1757087442727,-15275.966868,0.0002969,3]
[383686636,1757087442736,-151.0,0.000297,2]
[383686638,1757087442745,-192.17105617,0.000297,2]
[383686640,1757087442754,-212.7,0.000297,2]
[383686642,1757087442763,-1000.0,0.000297,2]
[383686644,1757087442773,-1000.0,0.000297,2]
[383686645,1757087442782,-1000.0,0.000297,2]
[383686646,1757087442791,-1000.0,0.000297,2]
[383686647,1757087442800,-1000.0,0.000297,2]
[383686648,1757087442809,-1000.0,0.000297,2]
[383686649,1757087442819,-1000.0,0.000297,2]
[383686650,1757087442828,-1000.0,0.000297,2]
[383686651,1757087442837,-1000.0,0.000297,2]
[383686652,1757087442847,-1000.0,0.000297,2]
[383686653,1757087442857,-1000.0,0.000297,2]
[383686654,1757087442866,-1000.0,0.000297,2]
[383686655,1757087442877,-1000.0,0.000297,2]
[383686656,1757087442886,-1000.0,0.000297,2]
[383686657,1757087442895,-1000.0,0.000297,2]
[383686659,1757087442904,-1000.0,0.000297,2]
[383686661,1757087442913,-1000.0,0.000297,2]
[383686663,1757087442923,-840.98940607,0.000297,2]
[383686665,1757087442932,-600.0,0.000297,10]
[383686667,1757087442941,-91655.8012081,0.00029717,3]
[383686669,1757087442950,-10265.5906518,0.00029727,2]
[383686729,1757087443512,-60243.434324,0.00029727,2]
[383686736,1757087443575,-4674.08330004,0.00029727,2]
[383686738,1757087443586,-1892.8438045,0.00029727,2]
[383686741,1757087443600,-666.8988418,0.00029727,2]
[383686764,1757087443810,-608.58662376,0.00029727,2]
[383686766,1757087443823,-1010.39940863,0.00029727,2]
[383686768,1757087443835,-341.49828141,0.00029727,2]
[383686770,1757087443848,-277.19364048,0.00029727,2]
[383686777,1757087443904,-6426.4788297,0.00029727,2]
[383686905,1757087446956,-944.2177592,0.00029727,2]
[383686906,1757087446967,-2727.84988697,0.00029727,2]
[383686907,1757087447006,-101005.63924771,0.00029727,2]
[383686908,1757087447016,-200.0,0.00029727,2]
[383686909,1757087447026,-159.49942854,0.00029727,2]
[383686910,1757087447036,-153.73684493,0.00029727,2]
[383686911,1757087447047,-4349.90920898,0.00029737,2]
[383686912,1757087447056,-500.0,0.00029737,2]
[383686913,1757087447066,-200.0,0.00029737,2]
[383686914,1757087447075,-500.0,0.00029773,5]
[383686915,1757087447086,-197.51603652,0.0002979,2]
[383686916,1757087447095,-1200.0,0.000298,10]
[383686917,1757087447105,-240.01,0.00029823,30]
[383686918,1757087447114,-3010.69135387,0.00029827,3]
[383686919,1757087447123,-514.06441088,0.00029827,3]
[383686920,1757087447133,-334.5472959,0.0002985,2]
[383686922,1757087447143,-267.46074303,0.0002985,2]
[383686924,1757087447152,-197.51603651,0.00029864,2]
[383686926,1757087447161,-15275.966868,0.00029869,3]
[383686928,1757087447175,-500.0,0.00029873,5]
[383686930,1757087447185,-500.0,0.00029873,5]
[383686932,1757087447194,-512.76925129,0.00029873,5]
[383686934,1757087447204,-502.80008317,0.00029873,5]
[383686936,1757087447214,-506.95016233,0.00029873,5]
[383686937,1757087447223,-10489.4317958,0.0002988,3]
[383686938,1757087447232,-30551.933736,0.00029889,3]
[383686939,1757087447241,-31468.2953874,0.00029889,3]
[383686940,1757087447253,-500.0,0.00029896,5]
[383686941,1757087447263,-150.0,0.00029896,5]
[383686942,1757087447273,-150.0,0.00029896,5]
[383686943,1757087447282,-631.0,0.00029896,5]
[383686944,1757087447291,-500.0,0.00029896,5]
[383686945,1757087447301,-150.0,0.00029896,5]
[383686946,1757087447310,-150.0,0.00029896,5]
[383686947,1757087447319,-600.0,0.00029896,5]
[383686948,1757087447329,-150.0,0.00029896,5]
[383686949,1757087447339,-150.0,0.00029896,5]
[383686950,1757087447353,-150.0,0.00029896,5]
[383686951,1757087447362,-150.0,0.00029896,5]
[383686952,1757087447371,-150.0,0.00029896,5]
[383686953,1757087447381,-150.0,0.00029896,5]
[383686954,1757087447390,-150.0,0.00029896,5]
[383686955,1757087447400,-150.0,0.00029896,5]
[383686956,1757087447410,-150.0,0.00029896,5]
[383686957,1757087447419,-150.0,0.00029896,5]
[383686958,1757087447428,-29912.14734883,0.000299,2]
[383686959,1757087447442,-30239.72060704,0.000299,2]
[383686960,1757087447451,-1900.0,0.000299,10]
[383686961,1757087447461,-197.51603651,0.00029937,2]
[383686962,1757087447470,-61103.867472,0.00029986,3]
[383686963,1757087447479,-52447.158979,0.00029986,3]
[383686964,1757087447489,-194.91039702,0.00029986,2]
[383686965,1757087447498,-10489.4317958,0.00029986,3]
[383686966,1757087447508,-151.0,0.00029987,7]
[383686967,1757087447518,-324.305971,0.00029987,7]
[383686968,1757087447527,-1040.529277,0.00029987,7]
[383686969,1757087447537,-324.305971,0.00029987,7]
[383686970,1757087447546,-1040.529277,0.00029987,7]
[383686971,1757087447555,-324.305971,0.00029987,7]
[383686972,1757087447565,-1040.529277,0.00029987,7]
[383686973,1757087447574,-324.305971,0.00029987,7]
[383686974,1757087447583,-151.0,0.00029987,7]
[383686975,1757087447592,-151.0,0.00029987,7]
[383686976,1757087447603,-1040.529277,0.00029987,7]
[383686977,1757087447611,-151.0,0.00029987,7]
[383686978,1757087447619,-401.087816,0.00029987,7]
[383686979,1757087447876,-3448.720097,0.00029987,7]
[383686980,1757087447886,-401.087816,0.00029987,7]
[383686981,1757087447896,-3448.720097,0.00029987,7]
[383686982,1757087447906,-151.0,0.00029987,7]
[383686983,1757087447916,-401.087816,0.00029987,7]
[383686984,1757087447925,-3448.720097,0.00029987,7]
[383686985,1757087447935,-151.0,0.00029987,7]
[383686986,1757087447945,-401.087816,0.00029987,7]
[383686987,1757087447954,-3448.720097,0.00029987,7]
[383686988,1757087447964,-308.508602,0.00029987,7]
[383686989,1757087447974,-151.0,0.00029987,7]
[383686990,1757087447984,-308.508602,0.00029987,7]
[383686991,1757087447994,-151.0,0.00029987,7]
[383686992,1757087448005,-151.0,0.00029987,7]
[383686993,1757087448014,-308.508602,0.00029987,7]
[383686994,1757087448024,-151.0,0.00029987,7]
[383686995,1757087448033,-308.508602,0.00029987,7]
[383686996,1757087448042,-451.641916,0.00029987,7]
[383686997,1757087448052,-254.687648,0.00029987,7]
[383686998,1757087448061,-151.0,0.00029987,7]
[383686999,1757087448071,-451.641916,0.00029987,7]
[383687000,1757087448080,-254.687648,0.00029987,7]
[383687001,1757087448089,-151.0,0.00029987,7]
[383687002,1757087448099,-151.0,0.00029987,7]
[383687003,1757087448111,-451.641916,0.00029987,7]
[383687004,1757087448120,-254.687648,0.00029987,7]
[383687005,1757087448129,-151.0,0.00029987,7]
[383687006,1757087448139,-451.641916,0.00029987,7]
[383687007,1757087448148,-254.687648,0.00029987,7]
[383687008,1757087448157,-151.0,0.00029987,7]
[383687009,1757087448168,-151.0,0.00029987,7]
[383687010,1757087448181,-151.0,0.00029987,7]
[383687011,1757087448191,-151.0,0.00029987,7]
[383687012,1757087448200,-151.0,0.00029987,7]
[383687013,1757087448211,-151.0,0.00029987,7]
[383687014,1757087448220,-151.0,0.00029987,7]
[383687015,1757087448230,-151.0,0.00029987,7]
[383687016,1757087448240,-151.0,0.00029987,7]
[383687017,1757087448250,-151.0,0.00029987,7]
[383687018,1757087448259,-1190.465765,0.00029987,7]
[383687019,1757087448268,-332.027744,0.00029987,7]
[383687020,1757087448278,-151.0,0.00029987,7]
[383687021,1757087448287,-1190.465765,0.00029987,7]
[383687022,1757087448296,-151.0,0.00029987,7]
[383687023,1757087448306,-332.027744,0.00029987,7]
[383687024,1757087448315,-1190.465765,0.00029987,7]
[383687025,1757087448324,-151.0,0.00029987,7]
[383687026,1757087448333,-332.027744,0.00029987,7]
[383687027,1757087448347,-1190.465765,0.00029987,7]
[383687028,1757087448359,-4462.186017,0.00029987,7]
[383687029,1757087448368,-332.027744,0.00029987,7]
[383687030,1757087448378,-152.554424,0.00029987,7]
[383687031,1757087448388,-151.0,0.00029987,7]
[383687032,1757087448398,-4462.186017,0.00029987,7]
[383687033,1757087448408,-239.106432,0.00029987,7]
[383687034,1757087448417,-168.031107,0.00029987,7]
[383687035,1757087448427,-151.0,0.00029987,7]
[383687036,1757087448437,-4462.186017,0.00029987,7]
[383687037,1757087448446,-151.0,0.00029987,7]
[383687038,1757087448456,-160.71453,0.00029987,7]
[383687039,1757087448465,-4462.186017,0.00029987,7]
[383687040,1757087448476,-168.031107,0.00029987,7]
[383687041,1757087448486,-151.0,0.00029987,7]
[383687042,1757087448495,-151.0,0.00029987,7]
[383687043,1757087448505,-151.0,0.00029987,7]
[383687044,1757087448515,-151.0,0.00029987,7]
[383687045,1757087448525,-563.313601,0.00029987,7]
[383687046,1757087448534,-151.0,0.00029987,7]
[383687047,1757087448544,-168.031107,0.00029987,7]
[383687048,1757087448554,-151.0,0.00029987,7]
[383687049,1757087448563,-563.313601,0.00029987,7]
[383687050,1757087448572,-151.0,0.00029987,7]
[383687051,1757087448582,-168.031107,0.00029987,7]
[383687052,1757087448592,-563.313601,0.00029987,7]
[383687053,1757087448603,-232.47195455,0.0002999,2]
[383687054,1757087448613,-15275.966868,0.0002999,3]
[383687055,1757087448623,-10489.4317958,0.0002999,3]
[383687056,1757087448632,-151.0,0.00029996,7]
[383687057,1757087448642,-151.684863,0.00029996,7]
[383687058,1757087448653,-151.0,0.00029996,7]
[383687059,1757087448663,-151.0,0.00029996,7]
[383687060,1757087448672,-151.37263,0.00029996,7]
[383687061,1757087448683,-151.0,0.00029996,7]
[383687062,1757087448693,-151.395571,0.00029996,7]
[383687063,1757087448703,-151.0,0.00029996,7]
[383687064,1757087448713,-151.0,0.00029996,7]
[383687065,1757087448723,-152.79065,0.00029996,7]
[383687066,1757087448733,-153.306289,0.00029996,7]
[383687067,1757087448742,-151.0,0.00029996,7]
[383687068,1757087448752,-151.583631,0.00029996,7]
[383687069,1757087448761,-153.3933,0.00029996,7]
[383687070,1757087448770,-151.0,0.00029996,7]
[383687071,1757087448780,-151.0,0.00029996,7]
[383687072,1757087448790,-151.0,0.00029996,7]
[383687073,1757087448800,-151.0,0.00029996,7]
[383687074,1757087448810,-151.0,0.00029996,7]
[383687075,1757087448820,-152.376092,0.00029996,7]
[383687076,1757087448829,-933.167675,0.00029996,7]
[383687077,1757087448839,-151.0,0.00029996,7]
[383687078,1757087448849,-151.0,0.00029996,7]
[383687079,1757087448861,-933.167675,0.00029996,7]
[383687080,1757087448871,-423.889961,0.00029996,7]
[383687081,1757087448881,-151.0,0.00029996,7]
[383687082,1757087448891,-933.167675,0.00029996,7]
[383687083,1757087448901,-423.889961,0.00029996,7]
[383687084,1757087448911,-151.0,0.00029996,7]
[383687085,1757087448920,-151.0,0.00029996,7]
[383687086,1757087448930,-933.167675,0.00029996,7]
[383687087,1757087448940,-151.0,0.00029996,7]
[383687088,1757087448949,-216.50245,0.00029996,7]
[383687089,1757087448959,-151.0,0.00029996,7]
[383687090,1757087448968,-151.0,0.00029996,7]
[383687091,1757087448978,-423.889961,0.00029996,7]
[383687092,1757087448987,-216.50245,0.00029996,7]
[383687093,1757087448997,-151.0,0.00029996,7]
[383687094,1757087449007,-155.098802,0.00029996,7]
[383687095,1757087449017,-423.889961,0.00029996,7]
[383687096,1757087449026,-151.366985,0.00029996,7]
[383687097,1757087449036,-216.50245,0.00029996,7]
[383687098,1757087449046,-151.0,0.00029996,7]
[383687099,1757087449056,-216.50245,0.00029996,7]
[383687100,1757087449066,-151.0,0.00029996,7]
[383687101,1757087449076,-151.0,0.00029996,7]
[383687102,1757087449085,-169.660122,0.00029996,7]
[383687103,1757087449095,-383.566874,0.00029996,7]
[383687104,1757087449106,-151.0,0.00029996,7]
[383687105,1757087449117,-151.0,0.00029996,7]
[383687106,1757087449127,-383.566874,0.00029996,7]
[383687107,1757087449137,-263.049412,0.00029996,7]
[383687108,1757087449147,-151.0,0.00029996,7]
[383687109,1757087449156,-383.566874,0.00029996,7]
[383687110,1757087449166,-263.049412,0.00029996,7]
[383687111,1757087449178,-213.41826,0.00029996,7]
[383687112,1757087449188,-151.0,0.00029996,7]
[383687113,1757087449198,-383.566874,0.00029996,7]
[383687114,1757087449207,-263.049412,0.00029996,7]
[383687115,1757087449218,-151.0,0.00029996,7]
[383687116,1757087449228,-213.41826,0.00029996,7]
[383687117,1757087449240,-804.408425,0.00029996,7]
[383687118,1757087449250,-263.049412,0.00029996,7]
[383687119,1757087449260,-213.41826,0.00029996,7]
[383687120,1757087449270,-804.408425,0.00029996,7]
[383687121,1757087449279,-414.570283,0.00029996,7]
[383687122,1757087449289,-386.592237,0.00029996,7]
[383687123,1757087449299,-213.41826,0.00029996,7]
[383687124,1757087449308,-386.592237,0.00029996,7]
[383687125,1757087449317,-414.570283,0.00029996,7]
[383687126,1757087449326,-804.408425,0.00029996,7]
[383687127,1757087449337,-386.592237,0.00029996,7]
[383687128,1757087449347,-414.570283,0.00029996,7]
[383687129,1757087449357,-804.408425,0.00029996,7]
[383687130,1757087449367,-157.065759,0.00029996,7]
[383687131,1757087449376,-386.592237,0.00029996,7]
[383687132,1757087449386,-414.570283,0.00029996,7]
[383687133,1757087449395,-151.0,0.00029996,7]
[383687134,1757087449404,-152.510107,0.00029996,7]
[383687135,1757087449414,-151.0,0.00029996,7]
[383687136,1757087449423,-151.0,0.00029996,7]
[383687137,1757087449433,-151.0,0.00029996,7]
[383687138,1757087449442,-151.0,0.00029996,7]
[383687139,1757087449451,-877.443014,0.00029996,7]
[383687140,1757087449461,-151.0,0.00029996,7]
[383687141,1757087449470,-151.0,0.00029996,7]
[383687142,1757087449479,-877.443014,0.00029996,7]
[383687143,1757087449489,-151.0,0.00029996,7]
[383687144,1757087449499,-151.0,0.00029996,7]
[383687145,1757087449509,-1013.94095,0.00029996,7]
[383687146,1757087449519,-877.443014,0.00029996,7]
[383687147,1757087449529,-151.0,0.00029996,7]
[383687148,1757087449539,-1013.94095,0.00029996,7]
[383687149,1757087449548,-151.0,0.00029996,7]
[383687150,1757087449558,-877.443014,0.00029996,7]
[383687151,1757087449569,-1013.94095,0.00029996,7]
[383687152,1757087449579,-151.0,0.00029996,7]
[383687153,1757087449588,-1013.94095,0.00029996,7]
[383687154,1757087449597,-151.0,0.00029996,7]
[383687155,1757087449607,-279.48533,0.00029996,7]
[383687156,1757087449616,-151.0,0.00029996,7]
[383687157,1757087449625,-279.48533,0.00029996,7]
[383687158,1757087449635,-151.0,0.00029996,7]
[383687159,1757087449647,-279.48533,0.00029996,7]
[383687160,1757087449656,-151.0,0.00029996,7]
[383687161,1757087449666,-151.0,0.00029996,7]
[383687162,1757087449676,-279.48533,0.00029996,7]
[383687163,1757087449685,-151.0,0.00029996,7]
[383687164,1757087449694,-151.0,0.00029996,7]
[383687165,1757087449703,-241.9798,0.00029996,7]
[383687166,1757087449714,-182.581747,0.00029996,7]
[383687167,1757087449723,-615.468132,0.00029996,7]
[383687168,1757087449733,-182.581747,0.00029996,7]
[383687169,1757087449742,-151.0,0.00029996,7]
[383687170,1757087449752,-615.468132,0.00029996,7]
[383687171,1757087449762,-182.581747,0.00029996,7]
[383687172,1757087449774,-615.468132,0.00029996,7]
[383687173,1757087449786,-182.581747,0.00029996,7]
[383687174,1757087449796,-151.764323,0.00029996,7]
[383687175,1757087449808,-725.530359,0.00029996,7]
[383687176,1757087449819,-199.63506,0.00029996,7]
[383687177,1757087449829,-153.156785,0.00029996,7]
[383687178,1757087449840,-725.530359,0.00029996,7]
[383687179,1757087449850,-151.0,0.00029996,7]
[383687180,1757087449861,-199.63506,0.00029996,7]
[383687181,1757087449870,-153.156785,0.00029996,7]
[383687182,1757087449880,-615.468132,0.00029996,7]
[383687183,1757087449892,-725.530359,0.00029996,7]
[383687184,1757087449901,-199.63506,0.00029996,7]
[383687185,1757087449911,-781.440617,0.00029996,7]
[383687186,1757087449922,-153.156785,0.00029996,7]
[383687187,1757087449932,-725.530359,0.00029996,7]
[383687188,1757087449941,-199.63506,0.00029996,7]
[383687189,1757087449951,-781.440617,0.00029996,7]
[383687190,1757087449960,-153.156785,0.00029996,7]
[383687191,1757087449969,-781.440617,0.00029996,7]
[383687192,1757087449978,-152.631645,0.00029996,7]
[383687193,1757087449987,-781.440617,0.00029996,7]
[383687194,1757087449997,-151.0,0.00029996,7]
[383687195,1757087450006,-297.722451,0.00029996,7]
[383687196,1757087450015,-151.0,0.00029996,7]
[383687197,1757087450025,-297.722451,0.00029996,7]
[383687198,1757087450033,-151.0,0.00029996,7]
[383687199,1757087450042,-297.722451,0.00029996,7]
[383687200,1757087450053,-153.395638,0.00029996,7]
[383687201,1757087450064,-151.0,0.00029996,7]
[383687202,1757087450075,-297.722451,0.00029996,7]
[383687203,1757087450085,-151.0,0.00029996,7]
[383687204,1757087450096,-151.0,0.00029996,7]
[383687205,1757087450106,-151.0,0.00029996,7]
[383687206,1757087450115,-151.891056,0.00029996,7]
[383687207,1757087450126,-327.767167,0.00029996,7]
[383687208,1757087450136,-327.767167,0.00029996,7]
[383687209,1757087450147,-327.767167,0.00029996,7]
[383687210,1757087450157,-327.767167,0.00029996,7]
[383687211,1757087450167,-151.0,0.00029996,7]
[383687212,1757087450182,-3704.902969,0.00029996,7]
[383687213,1757087450191,-596.556555,0.00029996,7]
[383687214,1757087450201,-2911.009047,0.00029996,7]
[383687215,1757087450210,-152.599039,0.00029996,7]
[383687216,1757087450221,-3704.902969,0.00029996,7]
[383687217,1757087450230,-2911.009047,0.00029996,7]
[383687218,1757087450239,-596.556555,0.00029996,7]
[383687219,1757087450250,-3704.902969,0.00029996,7]
[383687220,1757087450259,-596.556555,0.00029996,7]
[383687221,1757087450268,-2911.009047,0.00029996,7]
[383687222,1757087450277,-3704.902969,0.00029996,7]
[383687223,1757087450287,-596.556555,0.00029996,7]